[Event "Titled Tuesday Blitz December 20 Early 2022"]
[White "ChadBiryani"]
[Black "annacramling"]
[WhiteElo "2454"]
[BlackElo "2219"]
[Result "1-0"]
[Round "07"]
[TimeControl "180+2"]
[Date "2022.12.20"]
[WhiteClock "0:00:08"]
[BlackClock "0:00:03"]

1. d4 {[%clk 0:03:00]}  Nf6 {[%clk 0:03:00]} 2. Nc3 {[%clk 0:03:00]}  d5 {[%clk 0:02:59]} 3. Bf4 {[%clk 0:03:00]}  a6 {[%clk 0:02:58]} 4. e3 {[%clk 0:02:59]}  Bf5 {[%clk 0:02:57]} 5. f3 {[%clk 0:02:58]}  c5 {[%clk 0:02:56]} 6. g4 {[%clk 0:02:58]}  Bg6 {[%clk 0:02:56]} 7. h4 {[%clk 0:02:58]}  h5 {[%clk 0:02:55]} 8. g5 {[%clk 0:02:59]}  cxd4 {[%clk 0:02:28]} 9. Qxd4 {[%clk 0:02:33]}  Nc6 {[%clk 0:02:27]} 10. Qa4 {[%clk 0:02:33]}  Nd7 {[%clk 0:02:02]} 11. Nxd5 {[%clk 0:02:16]}  e5 {[%clk 0:01:59]} 12. Bg3 {[%clk 0:02:15]}  Nc5 {[%clk 0:01:47]} 13. Qc4 {[%clk 0:02:06]}  b5 {[%clk 0:01:45]} 14. Nf6+ {[%clk 0:01:55]}  gxf6 {[%clk 0:01:41]} 15. Qe2 {[%clk 0:01:52]}  Nb4 {[%clk 0:01:30]} 16. e4 {[%clk 0:01:50]}  Rc8 {[%clk 0:01:08]} 17. Rd1 {[%clk 0:01:32]}  Qa5 {[%clk 0:00:58]} 18. c3 {[%clk 0:01:32]}  Nbd3+ {[%clk 0:00:35]} 19. Rxd3 {[%clk 0:01:30]}  Nxd3+ {[%clk 0:00:36]} 20. Qxd3 {[%clk 0:01:31]}  Qxa2 {[%clk 0:00:32]} 21. gxf6 {[%clk 0:01:22]}  Qxb2 {[%clk 0:00:22]} 22. Bxe5 {[%clk 0:01:21]}  Rd8 {[%clk 0:00:20]} 23. Bd4 {[%clk 0:01:18]}  Bh6 {[%clk 0:00:12]} 24. Ne2 {[%clk 0:01:14]}  Qa1+ {[%clk 0:00:06]} 25. Kf2 {[%clk 0:01:14]}  O-O {[%clk 0:00:06]} 26. Rg1 {[%clk 0:01:14]}  Kh7 {[%clk 0:00:05]} 27. Bh3 {[%clk 0:01:13]}  Qb2 {[%clk 0:00:05]} 28. Rb1 {[%clk 0:00:52]}  Qd2 {[%clk 0:00:05]} 29. Qxd2 {[%clk 0:00:47]}  Bxd2 {[%clk 0:00:06]} 30. Ra1 {[%clk 0:00:48]}  a5 {[%clk 0:00:05]} 31. Rxa5 {[%clk 0:00:48]}  Rb8 {[%clk 0:00:04]} 32. Be5 {[%clk 0:00:24]}  Rb7 {[%clk 0:00:04]} 33. Bd6 {[%clk 0:00:21]}  Rd8 {[%clk 0:00:04]} 34. Bb4 {[%clk 0:00:20]}  Bh6 {[%clk 0:00:02]} 35. Nd4 {[%clk 0:00:20]}  Bf8 {[%clk 0:00:02]} 36. Nxb5 {[%clk 0:00:12]}  Bxb4 {[%clk 0:00:01]} 37. cxb4 {[%clk 0:00:13]}  Rd2+ {[%clk 0:00:01]} 38. Ke3 {[%clk 0:00:13]}  Rb2 {[%clk 0:00:02]} 39. Nd6 {[%clk 0:00:13]}  R7xb4 {[%clk 0:00:02]} 40. Ra8 {[%clk 0:00:08]}  R4b3+ {[%clk 0:00:02]} 41. Kf4 {[%clk 0:00:08]}  Rf2 {[%clk 0:00:01]} 42. Bf5 {[%clk 0:00:09]}  Rfxf3+ {[%clk 0:00:01]} 43. Ke5 {[%clk 0:00:09]}  Bxf5 {[%clk 0:00:02]} 44. Nxf5 {[%clk 0:00:09]}  Rbd3 {[%clk 0:00:02]} 45. Rf8 {[%clk 0:00:08]}  Rb3 {[%clk 0:00:02]} 46. Rxf7+ {[%clk 0:00:08]}  Kg8 {[%clk 0:00:02]} 47. Rg7+ {[%clk 0:00:08]}  Kf8 {[%clk 0:00:03]} 48. Ra7 {[%clk 0:00:08]}  Rb5+ {[%clk 0:00:03]} 49. Ke6 {[%clk 0:00:08]}  Rb6+ {[%clk 0:00:04]} 50. Nd6 {[%clk 0:00:08]}  Rd3 {[%clk 0:00:04]} 51. e5 {[%clk 0:00:09]}  Rb8 {[%clk 0:00:03]} 52. Rf7+ {[%clk 0:00:08]}  Kg8 {[%clk 0:00:03]} 53. Rg7+ {[%clk 0:00:08]}  Kf8 {[%clk 0:00:03]} 54. Rh7 {[%clk 0:00:09]}  Kg8 {[%clk 0:00:03]} 55. Rg7+ {[%clk 0:00:09]}  Kf8 {[%clk 0:00:03]} 56. Ne4 {[%clk 0:00:05]}  Re3 {[%clk 0:00:03]} 57. Ng5 {[%clk 0:00:05]}  Rg3 {[%clk 0:00:02]} 58. Rf7+ {[%clk 0:00:05]}  Kg8 {[%clk 0:00:02]} 59. Rg7+ {[%clk 0:00:06]}  Kf8 {[%clk 0:00:03]} 60. Nh7+ {[%clk 0:00:06]}  Ke8 {[%clk 0:00:02]} 61. Rxg3 {[%clk 0:00:06]}  Rb6+ {[%clk 0:00:02]} 62. Kf5 {[%clk 0:00:06]}  Kf7 {[%clk 0:00:03]} 63. Rg7+ {[%clk 0:00:07]}  Ke8 {[%clk 0:00:03]} 64. Rg8+ {[%clk 0:00:07]}  Kf7 {[%clk 0:00:03]} 65. Rf8# {[%clk 0:00:08]} 1-0


[Site "https://www.chess.com"]

[Event "Titled Tuesday Blitz December 20 Early 2022"]
[White "Chernov_Mikhail"]
[Black "dirk_da_player"]
[WhiteElo "2398"]
[BlackElo "2339"]
[Result "0-1"]
[Round "07"]
[TimeControl "180+2"]
[Date "2022.12.20"]
[WhiteClock "0:00:05"]
[BlackClock "0:00:39"]

1. e4 {[%clk 0:03:00]}  e5 {[%clk 0:02:59]} 2. Nc3 {[%clk 0:03:00]}  Nf6 {[%clk 0:02:59]} 3. Bc4 {[%clk 0:03:00]}  Bc5 {[%clk 0:02:59]} 4. d3 {[%clk 0:03:00]}  d6 {[%clk 0:02:58]} 5. f4 {[%clk 0:02:59]}  Be6 {[%clk 0:02:58]} 6. f5 {[%clk 0:02:57]}  Bxc4 {[%clk 0:02:58]} 7. dxc4 {[%clk 0:02:58]}  Bb4 {[%clk 0:02:45]} 8. Ne2 {[%clk 0:02:56]}  Nxe4 {[%clk 0:02:42]} 9. O-O {[%clk 0:02:50]}  Bc5+ {[%clk 0:02:27]} 10. Kh1 {[%clk 0:02:46]}  Nf2+ {[%clk 0:02:27]} 11. Rxf2 {[%clk 0:02:46]}  Bxf2 {[%clk 0:02:28]} 12. Ne4 {[%clk 0:02:39]}  Bb6 {[%clk 0:02:26]} 13. f6 {[%clk 0:02:36]}  gxf6 {[%clk 0:02:21]} 14. N2g3 {[%clk 0:02:35]}  Nc6 {[%clk 0:02:09]} 15. Qf3 {[%clk 0:02:19]}  Nd4 {[%clk 0:01:56]} 16. Nxf6+ {[%clk 0:02:18]}  Ke7 {[%clk 0:01:55]} 17. Qf1 {[%clk 0:01:49]}  h6 {[%clk 0:01:21]} 18. c3 {[%clk 0:01:42]}  Ne6 {[%clk 0:01:19]} 19. Nd5+ {[%clk 0:01:23]}  Kd7 {[%clk 0:01:17]} 20. Qxf7+ {[%clk 0:01:22]}  Kc8 {[%clk 0:01:17]} 21. Qxe6+ {[%clk 0:01:20]}  Kb8 {[%clk 0:01:17]} 22. Ne4 {[%clk 0:00:59]}  Re8 {[%clk 0:01:09]} 23. Qxh6 {[%clk 0:00:55]}  Rh8 {[%clk 0:01:09]} 24. Qg5 {[%clk 0:00:48]}  Qd7 {[%clk 0:00:55]} 25. Bd2 {[%clk 0:00:41]}  Qh7 {[%clk 0:00:55]} 26. Qh6 {[%clk 0:00:06]}  Qxh6 {[%clk 0:00:49]} 27. Bxh6 {[%clk 0:00:07]}  Rxh6 {[%clk 0:00:49]} 28. Rf1 {[%clk 0:00:07]}  a6 {[%clk 0:00:49]} 29. a4 {[%clk 0:00:06]}  a5 {[%clk 0:00:45]} 30. Rf7 {[%clk 0:00:06]}  Ka7 {[%clk 0:00:43]} 31. g4 {[%clk 0:00:05]}  Rah8 {[%clk 0:00:39]} 0-1


[Site "https://www.chess.com"]

[Event "Titled Tuesday Blitz December 20 Early 2022"]
[White "Chessmissile07"]
[Black "CristobalBlanco"]
[WhiteElo "2730"]
[BlackElo "2476"]
[Result "1-0"]
[Round "07"]
[TimeControl "180+2"]
[Date "2022.12.20"]
[WhiteClock "0:00:05"]
[BlackClock "0:00:02"]

1. e4 {[%clk 0:03:00]}  c5 {[%clk 0:02:59]} 2. Nc3 {[%clk 0:03:00]}  Nc6 {[%clk 0:02:59]} 3. Bb5 {[%clk 0:02:59]}  Nd4 {[%clk 0:02:57]} 4. Bc4 {[%clk 0:03:00]}  e6 {[%clk 0:02:57]} 5. Nf3 {[%clk 0:03:00]}  Ne7 {[%clk 0:02:57]} 6. O-O {[%clk 0:03:00]}  Ng6 {[%clk 0:02:55]} 7. Nxd4 {[%clk 0:02:55]}  cxd4 {[%clk 0:02:55]} 8. Ne2 {[%clk 0:02:56]}  Qb6 {[%clk 0:02:30]} 9. d3 {[%clk 0:02:55]}  Ne5 {[%clk 0:02:23]} 10. Bb3 {[%clk 0:02:54]}  a5 {[%clk 0:02:12]} 11. a4 {[%clk 0:02:53]}  h5 {[%clk 0:02:04]} 12. h3 {[%clk 0:02:52]}  d6 {[%clk 0:01:52]} 13. f4 {[%clk 0:02:51]}  Nc6 {[%clk 0:01:41]} 14. Qe1 {[%clk 0:02:50]}  h4 {[%clk 0:01:40]} 15. Qf2 {[%clk 0:02:47]}  Be7 {[%clk 0:01:37]} 16. f5 {[%clk 0:02:41]}  e5 {[%clk 0:01:35]} 17. Nc3 {[%clk 0:02:33]}  Nb4 {[%clk 0:01:29]} 18. Nd5 {[%clk 0:02:25]}  Nxd5 {[%clk 0:01:28]} 19. Bxd5 {[%clk 0:02:26]}  Qc5 {[%clk 0:01:22]} 20. Ra3 {[%clk 0:02:10]}  Rb8 {[%clk 0:01:13]} 21. Rb3 {[%clk 0:02:09]}  b6 {[%clk 0:01:10]} 22. Bc4 {[%clk 0:01:40]}  Bf6 {[%clk 0:01:00]} 23. Bb5+ {[%clk 0:01:33]}  Kf8 {[%clk 0:00:59]} 24. c3 {[%clk 0:01:28]}  Bb7 {[%clk 0:00:48]} 25. cxd4 {[%clk 0:01:08]}  exd4 {[%clk 0:00:47]} 26. Bf4 {[%clk 0:01:08]}  Qc7 {[%clk 0:00:26]} 27. Rc1 {[%clk 0:01:02]}  Qe7 {[%clk 0:00:25]} 28. Ra3 {[%clk 0:01:02]}  Be5 {[%clk 0:00:24]} 29. Raa1 {[%clk 0:01:00]}  Kg8 {[%clk 0:00:14]} 30. Rc4 {[%clk 0:00:24]}  Kh7 {[%clk 0:00:14]} 31. Rac1 {[%clk 0:00:24]}  Rhc8 {[%clk 0:00:13]} 32. Bd2 {[%clk 0:00:20]}  Rxc4 {[%clk 0:00:12]} 33. Rxc4 {[%clk 0:00:20]}  Rc8 {[%clk 0:00:11]} 34. Qf3 {[%clk 0:00:20]}  Rxc4 {[%clk 0:00:08]} 35. Bxc4 {[%clk 0:00:21]}  Kg8 {[%clk 0:00:07]} 36. Qg4 {[%clk 0:00:20]}  Bg3 {[%clk 0:00:06]} 37. Bg5 {[%clk 0:00:15]}  Qe5 {[%clk 0:00:06]} 38. Bxh4 {[%clk 0:00:11]}  Bf4 {[%clk 0:00:01]} 39. Bg5 {[%clk 0:00:10]}  Bxg5 {[%clk 0:00:01]} 40. Qxg5 {[%clk 0:00:11]}  d5 {[%clk 0:00:01]} 41. Bxd5 {[%clk 0:00:11]}  Bxd5 {[%clk 0:00:02]} 42. Qd8+ {[%clk 0:00:11]}  Kh7 {[%clk 0:00:02]} 43. Qxd5 {[%clk 0:00:12]}  Qg3 {[%clk 0:00:03]} 44. Qxd4 {[%clk 0:00:12]}  Qe1+ {[%clk 0:00:03]} 45. Kh2 {[%clk 0:00:12]}  Qe2 {[%clk 0:00:03]} 46. Qxb6 {[%clk 0:00:08]}  Qxd3 {[%clk 0:00:02]} 47. Qxa5 {[%clk 0:00:08]}  Qxe4 {[%clk 0:00:03]} 48. Qb5 {[%clk 0:00:03]}  Qf4+ {[%clk 0:00:02]} 49. Kg1 {[%clk 0:00:04]}  Qc1+ {[%clk 0:00:03]} 50. Kf2 {[%clk 0:00:04]}  Qf4+ {[%clk 0:00:03]} 51. Ke2 {[%clk 0:00:04]}  Qe4+ {[%clk 0:00:04]} 52. Kd2 {[%clk 0:00:05]}  Qxg2+ {[%clk 0:00:04]} 53. Kc1 {[%clk 0:00:06]}  Qxh3 {[%clk 0:00:04]} 54. a5 {[%clk 0:00:06]}  Qh1+ {[%clk 0:00:04]} 55. Kc2 {[%clk 0:00:07]}  Qg2+ {[%clk 0:00:04]} 56. Kb3 {[%clk 0:00:07]}  Qf3+ {[%clk 0:00:03]} 57. Ka2 {[%clk 0:00:07]}  g5 {[%clk 0:00:04]} 58. fxg6+ {[%clk 0:00:07]}  fxg6 {[%clk 0:00:04]} 59. a6 {[%clk 0:00:07]}  Qf7+ {[%clk 0:00:03]} 60. Qb3 {[%clk 0:00:08]}  Qf1 {[%clk 0:00:01]} 61. Qb7+ {[%clk 0:00:04]}  Kh6 {[%clk 0:00:02]} 62. a7 {[%clk 0:00:05]}  Qc4+ {[%clk 0:00:02]} 63. Ka3 {[%clk 0:00:05]}  Qc5+ {[%clk 0:00:02]} 64. b4 {[%clk 0:00:05]}  Qc3+ {[%clk 0:00:02]} 65. Ka4 {[%clk 0:00:05]} 1-0


[Site "https://www.chess.com"]

[Event "Titled Tuesday Blitz December 20 Early 2022"]
[White "Chesstrainer1"]
[Black "Kildepiotr"]
[WhiteElo "2467"]
[BlackElo "2682"]
[Result "1-0"]
[Round "07"]
[TimeControl "180+2"]
[Date "2022.12.20"]
[WhiteClock "0:00:29"]
[BlackClock "0:01:15"]

1. e4 {[%clk 0:02:53]}  g6 {[%clk 0:03:00]} 2. d4 {[%clk 0:02:53]}  Bg7 {[%clk 0:03:00]} 3. c4 {[%clk 0:02:53]}  c6 {[%clk 0:03:01]} 4. Nc3 {[%clk 0:02:52]}  d5 {[%clk 0:03:00]} 5. cxd5 {[%clk 0:02:48]}  cxd5 {[%clk 0:03:01]} 6. Nxd5 {[%clk 0:02:36]}  e6 {[%clk 0:02:56]} 7. Nc3 {[%clk 0:02:35]}  Qxd4 {[%clk 0:02:48]} 8. Be3 {[%clk 0:02:29]}  Qxd1+ {[%clk 0:02:43]} 9. Rxd1 {[%clk 0:02:30]}  a6 {[%clk 0:02:37]} 10. f4 {[%clk 0:02:16]}  Nc6 {[%clk 0:02:33]} 11. Nf3 {[%clk 0:02:10]}  b5 {[%clk 0:02:33]} 12. e5 {[%clk 0:02:08]}  Nge7 {[%clk 0:02:28]} 13. a4 {[%clk 0:02:01]}  b4 {[%clk 0:02:26]} 14. Ne4 {[%clk 0:02:01]}  O-O {[%clk 0:02:26]} 15. Bc5 {[%clk 0:01:59]}  a5 {[%clk 0:01:58]} 16. Bb5 {[%clk 0:01:50]}  Ba6 {[%clk 0:01:58]} 17. Bxc6 {[%clk 0:01:46]}  Nxc6 {[%clk 0:01:59]} 18. Bxf8 {[%clk 0:01:45]}  Bxf8 {[%clk 0:01:59]} 19. Nd6 {[%clk 0:01:44]}  Ne7 {[%clk 0:01:50]} 20. Kf2 {[%clk 0:01:39]}  Nd5 {[%clk 0:01:50]} 21. g3 {[%clk 0:01:37]}  b3 {[%clk 0:01:49]} 22. Ng5 {[%clk 0:01:29]}  Ra7 {[%clk 0:01:45]} 23. Nge4 {[%clk 0:01:14]}  Be7 {[%clk 0:01:38]} 24. Rc1 {[%clk 0:01:09]}  h6 {[%clk 0:01:29]} 25. Nc8 {[%clk 0:01:03]}  Bxc8 {[%clk 0:01:26]} 26. Rxc8+ {[%clk 0:01:04]}  Kg7 {[%clk 0:01:26]} 27. Rhc1 {[%clk 0:00:59]}  Rb7 {[%clk 0:01:26]} 28. Ra8 {[%clk 0:00:46]}  g5 {[%clk 0:01:25]} 29. Kf3 {[%clk 0:00:42]}  Rb4 {[%clk 0:01:22]} 30. Rcc8 {[%clk 0:00:39]}  Kg6 {[%clk 0:01:15]} 31. Rg8+ {[%clk 0:00:34]}  Kh5 {[%clk 0:01:15]} 32. g4+ {[%clk 0:00:29]}  Kh4 {[%clk 0:01:15]} 33. Rh8 {[%clk 0:00:29]} 1-0


[Site "https://www.chess.com"]

[Event "Titled Tuesday Blitz December 20 Early 2022"]
[White "Coachpoker"]
[Black "harperchesstt"]
[WhiteElo "2626"]
[BlackElo "2366"]
[Result "1-0"]
[Round "07"]
[TimeControl "180+2"]
[Date "2022.12.20"]
[WhiteClock "0:01:25"]
[BlackClock "0:00:05"]

1. d4 {[%clk 0:03:00]}  Nf6 {[%clk 0:02:59]} 2. c4 {[%clk 0:03:00]}  g6 {[%clk 0:02:59]} 3. Nc3 {[%clk 0:03:00]}  Bg7 {[%clk 0:03:00]} 4. e4 {[%clk 0:03:00]}  d6 {[%clk 0:03:01]} 5. Be2 {[%clk 0:03:00]}  O-O {[%clk 0:03:01]} 6. Nf3 {[%clk 0:03:00]}  e5 {[%clk 0:03:02]} 7. O-O {[%clk 0:03:00]}  Nc6 {[%clk 0:03:02]} 8. d5 {[%clk 0:03:01]}  Ne7 {[%clk 0:03:02]} 9. Ne1 {[%clk 0:03:02]}  Nd7 {[%clk 0:03:02]} 10. Be3 {[%clk 0:03:02]}  f5 {[%clk 0:03:02]} 11. f3 {[%clk 0:03:03]}  Nf6 {[%clk 0:02:59]} 12. c5 {[%clk 0:03:03]}  Kh8 {[%clk 0:02:52]} 13. a4 {[%clk 0:03:03]}  Neg8 {[%clk 0:02:40]} 14. Qd2 {[%clk 0:03:02]}  a5 {[%clk 0:02:15]} 15. cxd6 {[%clk 0:03:02]}  cxd6 {[%clk 0:02:15]} 16. Rc1 {[%clk 0:03:01]}  h5 {[%clk 0:02:11]} 17. Kh1 {[%clk 0:02:58]}  Kh7 {[%clk 0:02:07]} 18. Nd3 {[%clk 0:02:56]}  Bh6 {[%clk 0:02:04]} 19. Rc2 {[%clk 0:02:47]}  Bxe3 {[%clk 0:02:03]} 20. Qxe3 {[%clk 0:02:48]}  f4 {[%clk 0:02:03]} 21. Qf2 {[%clk 0:02:48]}  g5 {[%clk 0:02:01]} 22. Nb5 {[%clk 0:02:48]}  Ne8 {[%clk 0:02:01]} 23. Rfc1 {[%clk 0:02:47]}  Rf7 {[%clk 0:01:58]} 24. Bf1 {[%clk 0:02:37]}  g4 {[%clk 0:01:50]} 25. b3 {[%clk 0:02:17]}  Rg7 {[%clk 0:01:49]} 26. Qe1 {[%clk 0:02:09]}  Nh6 {[%clk 0:01:39]} 27. b4 {[%clk 0:02:00]}  axb4 {[%clk 0:01:33]} 28. Qxb4 {[%clk 0:02:01]}  Nf7 {[%clk 0:00:54]} 29. Nc7 {[%clk 0:01:58]}  Nxc7 {[%clk 0:00:47]} 30. Rxc7 {[%clk 0:01:59]}  gxf3 {[%clk 0:00:47]} 31. gxf3 {[%clk 0:01:59]}  Qg5 {[%clk 0:00:46]} 32. Qb6 {[%clk 0:01:50]}  Ra6 {[%clk 0:00:19]} 33. Qf2 {[%clk 0:01:47]}  Bg4 {[%clk 0:00:15]} 34. fxg4 {[%clk 0:01:35]}  hxg4 {[%clk 0:00:16]} 35. Rxb7 {[%clk 0:01:30]}  Rxa4 {[%clk 0:00:12]} 36. Rcc7 {[%clk 0:01:25]}  g3 {[%clk 0:00:05]} 37. Qg2 {[%clk 0:01:25]} 1-0


[Site "https://www.chess.com"]

[Event "Titled Tuesday Blitz December 20 Early 2022"]
[White "Crone, Stephan"]
[Black "temiksmozg"]
[WhiteFideId "4670175"]
[WhiteElo "1860"]
[BlackElo "2549"]
[Result "0-1"]
[Round "07"]
[TimeControl "180+2"]
[Date "2022.12.20"]
[WhiteClock "0:00:05"]
[BlackClock "0:00:52"]

1. e4 {[%clk 0:02:56]}  c5 {[%clk 0:02:59]} 2. Nf3 {[%clk 0:02:55]}  Nc6 {[%clk 0:02:58]} 3. Bb5 {[%clk 0:02:54]}  d6 {[%clk 0:02:52]} 4. c3 {[%clk 0:02:49]}  Nf6 {[%clk 0:02:38]} 5. Qe2 {[%clk 0:02:43]}  Bd7 {[%clk 0:02:31]} 6. O-O {[%clk 0:02:36]}  e5 {[%clk 0:02:21]} 7. d4 {[%clk 0:02:19]}  cxd4 {[%clk 0:02:19]} 8. cxd4 {[%clk 0:02:18]}  Nxd4 {[%clk 0:02:18]} 9. Nxd4 {[%clk 0:02:12]}  exd4 {[%clk 0:02:19]} 10. Rd1 {[%clk 0:01:38]}  Be7 {[%clk 0:01:57]} 11. Rxd4 {[%clk 0:01:36]}  O-O {[%clk 0:01:56]} 12. Nc3 {[%clk 0:01:35]}  Re8 {[%clk 0:01:48]} 13. f3 {[%clk 0:01:26]}  d5 {[%clk 0:01:39]} 14. Be3 {[%clk 0:00:56]}  Bc5 {[%clk 0:01:36]} 15. Bxd7 {[%clk 0:00:29]}  Bxd4 {[%clk 0:01:19]} 16. Bxd4 {[%clk 0:00:30]}  Qxd7 {[%clk 0:01:12]} 17. Bxf6 {[%clk 0:00:18]}  gxf6 {[%clk 0:01:11]} 18. Rd1 {[%clk 0:00:19]}  d4 {[%clk 0:01:07]} 19. Nd5 {[%clk 0:00:18]}  Qxd5 {[%clk 0:01:05]} 20. Qf2 {[%clk 0:00:09]}  Qc5 {[%clk 0:00:55]} 21. Qh4 {[%clk 0:00:05]}  Qg5 {[%clk 0:00:50]} 22. Qf2 {[%clk 0:00:04]}  Qe3 {[%clk 0:00:50]} 23. Rxd4 {[%clk 0:00:04]}  Qxf2+ {[%clk 0:00:50]} 24. Kxf2 {[%clk 0:00:05]}  Rad8 {[%clk 0:00:51]} 25. Ke3 {[%clk 0:00:04]}  Rxd4 {[%clk 0:00:51]} 26. Kxd4 {[%clk 0:00:05]}  Rc8 {[%clk 0:00:51]} 27. Kd3 {[%clk 0:00:05]}  Kf8 {[%clk 0:00:52]} 0-1


[Site "https://www.chess.com"]

[Event "Titled Tuesday Blitz December 20 Early 2022"]
[White "DIMONBANAN"]
[Black "Chesca, Alexandru"]
[BlackFideId "1214438"]
[WhiteElo "2416"]
[BlackElo "1917"]
[Result "1/2-1/2"]
[Round "07"]
[TimeControl "180+2"]
[Date "2022.12.20"]
[WhiteClock "0:00:03"]
[BlackClock "0:00:10"]

1. e4 {[%clk 0:03:00]}  c5 {[%clk 0:02:58]} 2. Nf3 {[%clk 0:03:00]}  d6 {[%clk 0:02:59]} 3. d4 {[%clk 0:02:59]}  cxd4 {[%clk 0:03:00]} 4. Nxd4 {[%clk 0:03:00]}  Nf6 {[%clk 0:03:00]} 5. Nc3 {[%clk 0:03:01]}  a6 {[%clk 0:03:01]} 6. h3 {[%clk 0:03:00]}  e5 {[%clk 0:03:00]} 7. Nb3 {[%clk 0:03:00]}  h5 {[%clk 0:03:00]} 8. Bg5 {[%clk 0:02:56]}  Be6 {[%clk 0:03:00]} 9. Be2 {[%clk 0:02:43]}  Be7 {[%clk 0:02:52]} 10. Bxf6 {[%clk 0:02:38]}  Bxf6 {[%clk 0:02:52]} 11. Bxh5 {[%clk 0:02:38]}  Nd7 {[%clk 0:02:40]} 12. Bg4 {[%clk 0:02:28]}  Rc8 {[%clk 0:02:38]} 13. Nd5 {[%clk 0:02:13]}  Bg5 {[%clk 0:02:31]} 14. c3 {[%clk 0:02:01]}  O-O {[%clk 0:02:26]} 15. O-O {[%clk 0:01:58]}  b5 {[%clk 0:02:21]} 16. Bf5 {[%clk 0:01:36]}  g6 {[%clk 0:02:19]} 17. Bg4 {[%clk 0:01:33]}  f5 {[%clk 0:02:18]} 18. exf5 {[%clk 0:01:30]}  gxf5 {[%clk 0:02:19]} 19. Bh5 {[%clk 0:01:22]}  e4 {[%clk 0:02:16]} 20. f4 {[%clk 0:01:15]}  Bh6 {[%clk 0:02:10]} 21. Ne3 {[%clk 0:01:11]}  Nc5 {[%clk 0:01:44]} 22. Nd4 {[%clk 0:01:10]}  Bd7 {[%clk 0:01:44]} 23. Bg6 {[%clk 0:01:06]}  Qf6 {[%clk 0:01:09]} 24. Qh5 {[%clk 0:01:01]}  Qg7 {[%clk 0:00:45]} 25. Nexf5 {[%clk 0:00:53]}  Bxf5 {[%clk 0:00:44]} 26. Nxf5 {[%clk 0:00:42]}  Rxf5 {[%clk 0:00:44]} 27. Qxf5 {[%clk 0:00:43]}  Rf8 {[%clk 0:00:44]} 28. Qd5+ {[%clk 0:00:44]}  Kh8 {[%clk 0:00:45]} 29. Bxe4 {[%clk 0:00:44]}  Qg3 {[%clk 0:00:39]} 30. Qh5 {[%clk 0:00:34]}  Qg7 {[%clk 0:00:33]} 31. Bd5 {[%clk 0:00:31]}  Nd3 {[%clk 0:00:33]} 32. f5 {[%clk 0:00:24]}  Qg5 {[%clk 0:00:25]} 33. Qxg5 {[%clk 0:00:24]}  Bxg5 {[%clk 0:00:26]} 34. b3 {[%clk 0:00:18]}  Nf4 {[%clk 0:00:23]} 35. Be6 {[%clk 0:00:17]}  Ne2+ {[%clk 0:00:22]} 36. Kh2 {[%clk 0:00:14]}  Nxc3 {[%clk 0:00:20]} 37. Rae1 {[%clk 0:00:09]}  d5 {[%clk 0:00:19]} 38. g4 {[%clk 0:00:09]}  d4 {[%clk 0:00:20]} 39. Kg3 {[%clk 0:00:09]}  d3 {[%clk 0:00:20]} 40. h4 {[%clk 0:00:06]}  Bd8 {[%clk 0:00:19]} 41. Re3 {[%clk 0:00:05]}  Bc7+ {[%clk 0:00:18]} 42. Kf3 {[%clk 0:00:05]}  Rd8 {[%clk 0:00:18]} 43. g5 {[%clk 0:00:04]}  b4 {[%clk 0:00:18]} 44. f6 {[%clk 0:00:03]}  d2 {[%clk 0:00:19]} 45. g6 {[%clk 0:00:04]}  d1=Q+ {[%clk 0:00:17]} 46. Rxd1 {[%clk 0:00:04]}  Nxd1 {[%clk 0:00:18]} 47. g7+ {[%clk 0:00:04]}  Kh7 {[%clk 0:00:18]} 48. g8=Q+ {[%clk 0:00:02]}  Rxg8 {[%clk 0:00:19]} 49. Bxg8+ {[%clk 0:00:03]}  Kxg8 {[%clk 0:00:20]} 50. Rd3 {[%clk 0:00:03]}  Nc3 {[%clk 0:00:19]} 51. f7+ {[%clk 0:00:04]}  Kf8 {[%clk 0:00:19]} 52. Rd7 {[%clk 0:00:04]}  Be5 {[%clk 0:00:19]} 53. Ra7 {[%clk 0:00:03]}  a5 {[%clk 0:00:17]} 54. h5 {[%clk 0:00:03]}  Bg7 {[%clk 0:00:17]} 55. Kg4 {[%clk 0:00:03]}  Bd4 {[%clk 0:00:16]} 56. Ra8+ {[%clk 0:00:02]}  Kxf7 {[%clk 0:00:15]} 57. Kf5 {[%clk 0:00:03]}  Nxa2 {[%clk 0:00:15]} 58. Rb8 {[%clk 0:00:02]}  Nc1 {[%clk 0:00:15]} 59. Rd8 {[%clk 0:00:02]}  Bc3 {[%clk 0:00:14]} 60. Rd7+ {[%clk 0:00:02]}  Ke8 {[%clk 0:00:14]} 61. Ra7 {[%clk 0:00:01]}  Nxb3 {[%clk 0:00:14]} 62. h6 {[%clk 0:00:02]}  Kd8 {[%clk 0:00:14]} 63. Ke4 {[%clk 0:00:02]}  Nc5+ {[%clk 0:00:14]} 64. Kd5 {[%clk 0:00:01]}  Nd3 {[%clk 0:00:12]} 65. Kc4 {[%clk 0:00:02]}  Nf4 {[%clk 0:00:12]} 66. Rxa5 {[%clk 0:00:01]}  Ne6 {[%clk 0:00:12]} 67. Ra8+ {[%clk 0:00:01]}  Ke7 {[%clk 0:00:12]} 68. h7 {[%clk 0:00:02]}  Nc7 {[%clk 0:00:10]} 69. h8=Q {[%clk 0:00:03]}  Bxh8 {[%clk 0:00:10]} 70. Rxh8 {[%clk 0:00:03]}  Ne6 {[%clk 0:00:10]} 71. Rh7+ {[%clk 0:00:03]}  Kd6 {[%clk 0:00:11]} 72. Kxb4 {[%clk 0:00:04]}  Ke5 {[%clk 0:00:11]} 73. Rh8 {[%clk 0:00:03]}  Nf4 {[%clk 0:00:12]} 74. Kc3 {[%clk 0:00:04]}  Nd5+ {[%clk 0:00:12]} 75. Kd3 {[%clk 0:00:04]}  Nf6 {[%clk 0:00:13]} 76. Ke3 {[%clk 0:00:04]}  Ng4+ {[%clk 0:00:14]} 77. Kf3 {[%clk 0:00:04]}  Nf6 {[%clk 0:00:15]} 78. Rf8 {[%clk 0:00:04]}  Kf5 {[%clk 0:00:15]} 79. Kg3 {[%clk 0:00:04]}  Kg5 {[%clk 0:00:14]} 80. Ra8 {[%clk 0:00:05]}  Kf5 {[%clk 0:00:14]} 81. Ra5+ {[%clk 0:00:05]}  Ke4 {[%clk 0:00:15]} 82. Kf2 {[%clk 0:00:04]}  Ng4+ {[%clk 0:00:15]} 83. Kg3 {[%clk 0:00:04]}  Ne5 {[%clk 0:00:14]} 84. Kf2 {[%clk 0:00:04]}  Ng4+ {[%clk 0:00:14]} 85. Ke2 {[%clk 0:00:04]}  Ne5 {[%clk 0:00:14]} 86. Ra4+ {[%clk 0:00:05]}  Kd5 {[%clk 0:00:14]} 87. Ke3 {[%clk 0:00:05]}  Nc4+ {[%clk 0:00:14]} 88. Kd3 {[%clk 0:00:06]}  Ne5+ {[%clk 0:00:15]} 89. Kc3 {[%clk 0:00:06]}  Nf3 {[%clk 0:00:12]} 90. Ra5+ {[%clk 0:00:06]}  Ke4 {[%clk 0:00:13]} 91. Ra8 {[%clk 0:00:06]}  Ne5 {[%clk 0:00:13]} 92. Re8 {[%clk 0:00:06]}  Kd5 {[%clk 0:00:13]} 93. Re7 {[%clk 0:00:06]}  Ke4 {[%clk 0:00:13]} 94. Kd2 {[%clk 0:00:06]}  Kd4 {[%clk 0:00:13]} 95. Re8 {[%clk 0:00:05]}  Ke4 {[%clk 0:00:13]} 96. Rd8 {[%clk 0:00:06]}  Nf3+ {[%clk 0:00:12]} 97. Ke2 {[%clk 0:00:06]}  Nd4+ {[%clk 0:00:13]} 98. Kf2 {[%clk 0:00:06]}  Nf5 {[%clk 0:00:13]} 99. Re8+ {[%clk 0:00:06]}  Kf4 {[%clk 0:00:13]} 100. Ra8 {[%clk 0:00:06]}  Ke4 {[%clk 0:00:13]} 101. Ra4+ {[%clk 0:00:05]}  Ke5 {[%clk 0:00:14]} 102. Kf3 {[%clk 0:00:06]}  Nd4+ {[%clk 0:00:14]} 103. Ke3 {[%clk 0:00:06]}  Nf5+ {[%clk 0:00:15]} 104. Kd3 {[%clk 0:00:06]}  Ng3 {[%clk 0:00:13]} 105. Ra5+ {[%clk 0:00:07]}  Kf4 {[%clk 0:00:14]} 106. Ra8 {[%clk 0:00:05]}  Nf5 {[%clk 0:00:14]} 107. Rf8 {[%clk 0:00:06]}  Ke5 {[%clk 0:00:14]} 108. Kc4 {[%clk 0:00:06]}  Ke4 {[%clk 0:00:14]} 109. Re8+ {[%clk 0:00:06]}  Kf4 {[%clk 0:00:14]} 110. Kd5 {[%clk 0:00:06]}  Ne3+ {[%clk 0:00:15]} 111. Kd4 {[%clk 0:00:06]}  Nf5+ {[%clk 0:00:15]} 112. Kd3 {[%clk 0:00:07]}  Nd6 {[%clk 0:00:12]} 113. Re6 {[%clk 0:00:06]}  Nf5 {[%clk 0:00:11]} 114. Re1 {[%clk 0:00:06]}  Ng3 {[%clk 0:00:11]} 115. Re3 {[%clk 0:00:03]}  Nf5 {[%clk 0:00:10]} 116. Re4+ {[%clk 0:00:04]}  Kf3 {[%clk 0:00:10]} 117. Re8 {[%clk 0:00:02]}  Kf4 {[%clk 0:00:10]} 118. Rf8 {[%clk 0:00:02]}  Ke5 {[%clk 0:00:10]} 119. Kc4 {[%clk 0:00:02]}  Ke4 {[%clk 0:00:10]} 120. Re8+ {[%clk 0:00:02]}  Kf4 {[%clk 0:00:10]} 121. Kd5 {[%clk 0:00:02]}  Ne3+ {[%clk 0:00:10]} 122. Kd4 {[%clk 0:00:03]} 1/2-1/2


[Site "https://www.chess.com"]